{"text_format":"1","workbook":"xlsx","n_sheets":1,"sheets":["Hoja1"],"not_rendered":{"charts":0,"images":2,"macros":1,"external_links":0,"defined_names":1,"comments":0,"pivot_tables":0},"unopened":[],"bounds":{"document_bytes":16777216,"sheet_cells":100000,"rows_first":2000,"rows_last":500,"rows_between":2000,"halvings":0,"cell_chars":16384,"cell_head_chars":4096},"cells_cut":0,"cells_raw":0,"read":"whole","date_system":"1900"}

{"sheet":"Hoja1","index":0,"n_rows":118,"n_cols":16,"rows_kept":118,"cut":false,"hidden":false,"merged":[]}
[null,null,null,null,null,null,null,null,null,null,null,"Name ","Symbol ","Atomic Mass ","Group ","Period"]
[null,null,null,null,null,null,null,null,null,null,null,"Actinium ","Ac ",227,"n/a ",7]
[null,null,null,null,null,null,null,null,null,null,{"$f":"IFERROR(B20,0)","v":0},"Aluminium (Aluminum) ","Al ",26.9815386,13,3]
[null,null,null,null,null,null,null,null,null,null,{"$f":"IFERROR(C20,0)","v":0},"Americium ","Am ",243,"n/a ",7]
[null,null,null,null,null,null,null,null,null,null,{"$f":"IFERROR(D20,0)","v":0},"Antimony (Stibium) ","Sb ",121.76,15,5]
[null,null,null,null,null,null,null,null,null,null,{"$f":"IFERROR(E20,0)","v":0},"Argon ","Ar ",39.948,18,3]
[null,null,null,null,null,null,null,null,null,null,{"$f":"IFERROR(F20,0)","v":0},"Arsenic ","As ",74.921599999999998,15,4]
[null,"Formula of compound:",null,null,null,null,null,null,null,null,{"$f":"IFERROR(G20,0)","v":0},"Astatine ","At ",210,17,6]
[null,null,null,null,null,null,null,null,null,null,null,"Barium ","Ba ",137.327,2,6]
[null,"Element 1","Element 2","Element3","Element 4","Element 5","Element 6",null,null,null,null,"Berkelium ","Bk ",247,"n/a ",7]
[null,null,null,null,null,null,null,null,null,null,null,"Beryllium ","Be ",9.0121819999999992,2,2]
[null,null,null,null,null,null,null,null,"Molar mass of compound",null,null,"Bismuth ","Bi ",208.9804,15,6]
[null,"Chemical Symbol 1","Chemical Symbol 2","Chemical Symbol 3","Chemical Symbol 4","Chemical Symbol 5","Chemical Symbol 6",null,{"$f":"B17*K3+C17*K4+D17*K5+E17*K6+F17*K7+G17*K8","v":0},null,null,"Bohrium ","Bh ",264,7,7]
[null,{"$f":"LOOKUP(B11,L2:L118, M2:M118)","v":{"$error":"#N/A"}},{"$f":"LOOKUP(C11,L2:L118, M2:M118)","v":{"$error":"#N/A"}},{"$f":"LOOKUP(D11,L2:L118, M2:M118)","v":{"$error":"#N/A"}},{"$f":"LOOKUP(E11,L2:L118, M2:M118)","v":{"$error":"#N/A"}},{"$f":"LOOKUP(F11,L2:L118, M2:M118)","v":{"$error":"#N/A"}},{"$f":"LOOKUP(G11,L2:L118, M2:M118)","v":{"$error":"#N/A"}},null,null,null,null,"Boron ","B ",10.811,13,2]
[null,null,null,null,null,null,null,null,null,null,null,"Bromine ","Br ",79.903999999999996,17,4]
[null,"Atoms element 1","Atoms element 2","Atoms element 3","Atoms element 4","Atoms element 5","Atoms element 6",null,null,null,null,"Cadmium ","Cd ",112.411,12,5]
[null,null,null,null,null,null,null,null,"Ricardo Álvarez",null,null,"Caesium (Cesium) ","Cs ",132.9054519,1,6]
[null,null,null,null,null,null,null,null,"e-mail: ralvarez@ebd.csic.es",null,null,"Calcium ","Ca ",40.078000000000003,2,4]
[null,"Atomic Mas  of element 1","Atomic Mas of element 2","Atomic Mas of element 3","Atomic Mas of element 4","Atomic Mas of element 5","Atomic Mas of element 6",null,null,null,null,"Californium ","Cf ",251,"n/a ",7]
[null,{"$f":"LOOKUP(B11,L2:L118, N2:N118)","v":{"$error":"#N/A"}},{"$f":"LOOKUP(C11,L2:L118, N2:N118)","v":{"$error":"#N/A"}},{"$f":"LOOKUP(D11,L2:L118, N2:N118)","v":{"$error":"#N/A"}},{"$f":"LOOKUP(E11,L2:L118, N2:N118)","v":{"$error":"#N/A"}},{"$f":"LOOKUP(F11,L2:L118, N2:N118)","v":{"$error":"#N/A"}},{"$f":"LOOKUP(G11,L2:L118, N2:N118)","v":{"$error":"#N/A"}},null,null,null,null,"Carbon ","C ",12.0107,14,2]
[null,null,null,null,null,null,null,null,null,null,null,"Cerium ","Ce ",140.11600000000001,"n/a ",6]
[null,"Percentage composition of element 1","Percentage composition of element 2","Percentage composition of element 3","Percentage composition of element 4","Percentage composition of element 5","Percentage composition of element 6",null,null,null,null,"Chlorine ","Cl ",35.453000000000003,17,3]
[null,{"$f":"(B20*B17/I13)*100","v":{"$error":"#N/A"}},{"$f":"(C20*C17/I13)*100","v":{"$error":"#N/A"}},{"$f":"(D20*D17/I13)*100","v":{"$error":"#N/A"}},{"$f":"(E20*E17/I13)*100","v":{"$error":"#N/A"}},{"$f":"(F20*F17/I13)*100","v":{"$error":"#N/A"}},{"$f":"(G20*G17/I13)*100","v":{"$error":"#N/A"}},null,null,null,null,"Chromium ","Cr ",51.996099999999998,6,4]
[null,null,null,null,null,null,null,null,null,null,null,"Cobalt ","Co ",58.933194999999998,9,4]
[null,null,"Editable cells",null,null,null,null,null,null,null,null,"Copper (Cuprum) ","Cu ",63.545999999999999,11,4]
[null,null,null,null,"Example:",null,null,null,null,null,null,"Curium ","Cm ",247,"n/a ",7]
[null,null,null,null,null,null,null,null,null,null,null,"Darmstadtium ","Ds ",271,10,7]
[null,null,null,null,null,null,null,null,null,null,null,"Dubnium ","Db ",262,5,7]
[null,null,null,null,null,null,null,null,null,null,null,"Dysprosium ","Dy ",162.5,"n/a ",6]
[null,null,null,null,null,null,null,null,null,null,null,"Einsteinium ","Es ",252,"n/a ",7]
[null,null,null,null,null,null,null,null,null,null,null,"Erbium ","Er ",167.25899999999999,"n/a ",6]
[null,null,null,null,null,null,null,null,null,null,null,"Europium ","Eu ",151.964,"n/a ",6]
[null,null,null,null,null,null,null,null,null,null,null,"Fermium ","Fm ",257,"n/a ",7]
[null,null,null,null,null,null,null,null,null,null,null,"Fluorine ","F ",18.998403199999998,17,2]
[null,null,null,null,null,null,null,null,null,null,null,"Francium ","Fr ",223,1,7]
[null,null,null,null,null,null,null,null,null,null,null,"Gadolinium ","Gd ",157.25,"n/a ",6]
[null,null,null,null,null,null,null,null,null,null,null,"Gallium ","Ga ",69.722999999999999,13,4]
[null,null,null,null,null,null,null,null,null,null,null,"Germanium ","Ge ",72.64,14,4]
[null,null,null,null,null,null,null,null,null,null,null,"Gold (Aurum) ","Au ",196.96656899999999,11,6]
[null,null,null,null,null,null,null,null,null,null,null,"Hafnium ","Hf ",178.49,4,6]
[null,null,null,null,null,null,null,null,null,null,null,"Hassium ","Hs ",277,8,7]
[null,null,null,null,null,null,null,null,null,null,null,"Helium ","He ",4.0026020000000004,18,1]
[null,null,null,null,null,null,null,null,null,null,null,"Holmium ","Ho ","164.930 32 ","n/a ",6]
[null,null,null,null,null,null,null,null,null,null,null,"Hydrogen ","H ",1.0079400000000001,1,1]
[null,null,null,null,null,null,null,null,null,null,null,"Indium ","In ",114.818,13,5]
[null,null,null,null,null,null,null,null,null,null,null,"Iodine ","I ","126.904 47 ",17,5]
[null,null,null,null,null,null,null,null,null,null,null,"Iridium ","Ir ",192.21700000000001,9,6]
[null,null,null,null,null,null,null,null,null,null,null,"Iron (Ferrum) ","Fe ",55.844999999999999,8,4]
[null,null,null,null,null,null,null,null,null,null,null,"Krypton ","Kr ",83.798000000000002,18,4]
[null,null,null,null,null,null,null,null,null,null,null,"Lanthanum ","La ",138.90547000000001,"n/a ",6]
[null,null,null,null,null,null,null,null,null,null,null,"Lawrencium ","Lr ",262,3,7]
[null,null,null,null,null,null,null,null,null,null,null,"Lead (Plumbum) ","Pb ",207.2,14,6]
[null,null,null,null,null,null,null,null,null,null,null,"Lithium ","Li ",6.9409999999999998,1,2]
[null,null,null,null,null,null,null,null,null,null,null,"Lutetium ","Lu ",174.96700000000001,3,6]
[null,null,null,null,null,null,null,null,null,null,null,"Magnesium ","Mg ",24.305,2,3]
[null,null,null,null,null,null,null,null,null,null,null,"Manganese ","Mn ",54.938045000000002,7,4]
[null,null,null,null,null,null,null,null,null,null,null,"Meitnerium ","Mt ",268,9,7]
[null,null,null,null,null,null,null,null,null,null,null,"Mendelevium ","Md ",258,"n/a ",7]
[null,null,null,null,null,null,null,null,null,null,null,"Mercury (Hydrargyrum) ","Hg ",200.59,12,6]
[null,null,null,null,null,null,null,null,null,null,null,"Molybdenum ","Mo ",95.94,6,5]
[null,null,null,null,null,null,null,null,null,null,null,"Neodymium ","Nd ",144.24199999999999,"n/a ",6]
[null,null,null,null,null,null,null,null,null,null,null,"Neon ","Ne ",20.1797,18,2]
[null,null,null,null,null,null,null,null,null,null,null,"Neptunium ","Np ",237,"n/a ",7]
[null,null,null,null,null,null,null,null,null,null,null,"Nickel ","Ni ",58.693399999999997,10,4]
[null,null,null,null,null,null,null,null,null,null,null,"Niobium ","Nb ","92.906 38 ",5,5]
[null,null,null,null,null,null,null,null,null,null,null,"Nitrogen ","N ",14.0067,15,2]
[null,null,null,null,null,null,null,null,null,null,null,"Nobelium ","No ",259,"n/a ",7]
[null,null,null,null,null,null,null,null,null,null,null,"Osmium ","Os ",190.23,8,6]
[null,null,null,null,null,null,null,null,null,null,null,"Oxygen ","O ",15.9994,16,2]
[null,null,null,null,null,null,null,null,null,null,null,"Palladium ","Pd ",106.42,10,5]
[null,null,null,null,null,null,null,null,null,null,null,"Phosphorus ","P ",30.973762000000001,15,3]
[null,null,null,null,null,null,null,null,null,null,null,"Platinum ","Pt ",195.084,10,6]
[null,null,null,null,null,null,null,null,null,null,null,"Plutonium ","Pu ",244,"n/a ",7]
[null,null,null,null,null,null,null,null,null,null,null,"Polonium ","Po ",210,16,6]
[null,null,null,null,null,null,null,null,null,null,null,"Potassium (Kalium) ","K ",39.098300000000002,1,4]
[null,null,null,null,null,null,null,null,null,null,null,"Praseodymium ","Pr ",140.90764999999999,"n/a ",6]
[null,null,null,null,null,null,null,null,null,null,null,"Promethium ","Pm ",145,"n/a ",6]
[null,null,null,null,null,null,null,null,null,null,null,"Protactinium ","Pa ",231.03587999999999,"n/a ",7]
[null,null,null,null,null,null,null,null,null,null,null,"Radium ","Ra ",226,2,7]
[null,null,null,null,null,null,null,null,null,null,null,"Radon ","Rn ",220,18,6]
[null,null,null,null,null,null,null,null,null,null,null,"Rhenium ","Re ",186.20699999999999,7,6]
[null,null,null,null,null,null,null,null,null,null,null,"Rhodium ","Rh ","102.905 50",9,5]
[null,null,null,null,null,null,null,null,null,null,null,"Roentgenium ","Rg ",272,11,7]
[null,null,null,null,null,null,null,null,null,null,null,"Rubidium ","Rb ",85.467799999999997,1,5]
[null,null,null,null,null,null,null,null,null,null,null,"Ruthenium ","Ru ",101.07,8,5]
[null,null,null,null,null,null,null,null,null,null,null,"Rutherfordium ","Rf ",261,4,7]
[null,null,null,null,null,null,null,null,null,null,null,"Samarium ","Sm ",150.36000000000001,"n/a ",6]
[null,null,null,null,null,null,null,null,null,null,null,"Scandium ","Sc ",44.955911999999998,3,4]
[null,null,null,null,null,null,null,null,null,null,null,"Seaborgium ","Sg ",266,6,7]
[null,null,null,null,null,null,null,null,null,null,null,"Selenium ","Se ",78.959999999999994,16,4]
[null,null,null,null,null,null,null,null,null,null,null,"Silicon ","Si ",28.0855,14,3]
[null,null,null,null,null,null,null,null,null,null,null,"Silver (Argentum) ","Ag ",107.8682,11,5]
[null,null,null,null,null,null,null,null,null,null,null,"Sodium (Natrium) ","Na ",22.989769280000001,1,3]
[null,null,null,null,null,null,null,null,null,null,null,"Strontium ","Sr ",87.62,2,5]
[null,null,null,null,null,null,null,null,null,null,null,"Sulfur ","S ",32.064999999999998,16,3]
[null,null,null,null,null,null,null,null,null,null,null,"Tantalum ","Ta ",180.94788,5,6]
[null,null,null,null,null,null,null,null,null,null,null,"Technetium ","Tc ",98,7,5]
[null,null,null,null,null,null,null,null,null,null,null,"Tellurium ","Te ",127.6,16,5]
[null,null,null,null,null,null,null,null,null,null,null,"Terbium ","Tb ",158.92535000000001,"n/a ",6]
[null,null,null,null,null,null,null,null,null,null,null,"Thallium ","Tl ",204.38329999999999,13,6]
[null,null,null,null,null,null,null,null,null,null,null,"Thorium ","Th ",232.03806,"n/a ",7]
[null,null,null,null,null,null,null,null,null,null,null,"Thulium ","Tm ",168.93421000000001,"n/a ",6]
[null,null,null,null,null,null,null,null,null,null,null,"Tin (Stannum) ","Sn ",118.71,14,5]
[null,null,null,null,null,null,null,null,null,null,null,"Titanium ","Ti ",47.866999999999997,4,4]
[null,null,null,null,null,null,null,null,null,null,null,"Tungsten (Wolfram) ","W ",183.84,6,6]
[null,null,null,null,null,null,null,null,null,null,null,"Ununbium ","Uub ",285,12,7]
[null,null,null,null,null,null,null,null,null,null,null,"Ununhexium ","Uuh ",292,16,7]
[null,null,null,null,null,null,null,null,null,null,null,"Ununoctium ","Uuo ",294,18,7]
[null,null,null,null,null,null,null,null,null,null,null,"Ununpentium ","Uup ",288,15,7]
[null,null,null,null,null,null,null,null,null,null,null,"Ununquadium ","Uuq ",289,14,7]
[null,null,null,null,null,null,null,null,null,null,null,"Ununtrium ","Uut ",284,13,7]
[null,null,null,null,null,null,null,null,null,null,null,"Uranium ","U ",238.02891,"n/a ",7]
[null,null,null,null,null,null,null,null,null,null,null,"Vanadium ","V ",50.941499999999998,5,4]
[null,null,null,null,null,null,null,null,null,null,null,"Xenon ","Xe ",131.29300000000001,18,5]
[null,null,null,null,null,null,null,null,null,null,null,"Ytterbium ","Yb ",173.04,"n/a ",6]
[null,null,null,null,null,null,null,null,null,null,null,"Yttrium ","Y ",88.905850000000001,3,5]
[null,null,null,null,null,null,null,null,null,null,null,"Zinc ","Zn ",65.409000000000006,12,4]
[null,null,null,null,null,null,null,null,null,null,null,"Zirconium ","Zr ",91.224000000000004,4,5]